Workbook

Sheet EC Instructions
A1: EC INSTRUCTIONS (DETAILED BUDGET TABLE AG — PROPOSAL/GRANT PREPARATION)
A4: General
A5: The file is composed of 3 password-protected sheets for EU staff (EC Instructions, EC Data and EC Format) and 5 sheets for the Consortium (Instructions, Start, Detailed table and Consolidated table (participants) and Consolidated table (project).
A6: The EC sheets (EC Data) must be set-up only once for your programme/MGAs (works for all except operating grants - see separate template) as part of the Programme template set-up exercise. The Consortium sheets (Start, Detailed table and Consolidated tables) must be filled out and submitted as part of the Proposal (and/or later during GAP): - scanned and attached as PDF to the proposal Part B in SEP (for sheets 3 and 4: one per beneficiary/linked third party) - uploaded as Excel file in SyGMa (as attachment to the GA Annex 1). If you need the Excel file for the evaluation, ask the coordinator to send them to you by normal e-mail (outside the system).
A8: Getting started
A9: To use the file, the Excel Macro security settings must be enabled on your computer. This is managed and checked when opening the file, but contact your IT team if you encounter problems.
A10: Download the file: Before downloading close all other excel files (open excel files may hamper the macros). Download the file from the ToolKit using EDIT WORKBOOK - EDIT IN EXCEL - SAVE AS to save a copy on your desktop. Then close the document and re-open it.
A11: Unblock the file: Before starting (and after each time you save), you have to unblock the file by clicking the Unprotect All Sheets button on EC Data sheet (or alternatively by pressing Ctrl Q + Password: Detailed budget table). If it doesn't work, try several times.
A13: EC-Data sheet
A14: Make your choices in the EC Data sheet. When finished, click on the Save & Update Detailed Budget Table button.
A16: EC-Format sheet
A17: The EC-Format sheet is for view-only purposes. You do NOT need to do anything on it, you just need to check that it correctly reflects your choices (and if not, contact the LS (Bettina Conte)). This sheet shows the rows that will be copied into the table for each new WP the Participants will choose (via their Start sheet).
A19: Testing
A20: Test your configuration several times with real numbers. You need to be sure that the table works for your Participants.
A21: To block the document and hide the 2 sheets again, place the cursor on sheet "1. Instructions" and press CTRL Q and answer the question box with OK.
A22: After this, you can save the file and it is ready for use by the participants. You should add them to the call documents (for info) and ask SEP to provide them for download in the Submission Tool.

Sheet EC Data
A1: EC DATA (DETAILED BUDGET TABLE AG — PROPOSAL/GRANT PREPARATION)
A3: Work package numbers
E4: WP_nb | F4: PW
E5: 6 | F5: Detailed budget table
A7: Which cost categories?
B8: 1=Yes / 0=No | C8: Index and WP
A9: A. Personnel costs | B9: 1 | C9: 0
A10: B. Subcontracting costs | B10: 1
A11: C1. Travel and subsistence | B11: 1
A12: C2. Equipment | B12: 1
A13: C3. Other goods, works and services | B13: 1
A14: D.1. Financial support to third parties | B14: 0
A15: D.2 [Category name] | B15: 0
A16: D.3 [Category name] | B16: 0
A17: D.4 [Category name] | B17: 0
A18: D.5 [Category name] | B18: 0
A19: D.6 [Category name] | B19: 0
A20: E. Indirect costs | B20: 1
A22: Which staff type?
B23: 1=Yes / 0=No
A24: A.1 Employees (or equivalent) | B24: 1
A25: A.2 + A.3 Natural persons under direct contract and seconded persons | B25: 1
A26: A.4 SME owners without salary and natural person beneficiaries without salary | B26: 1
A27: A.5 Volunteers | B27: 0
A28: A.6 [Category name] | B28: 0
A29: A.7 [Category name] | B29: 0
A31: Which staff categories?
B32: Drop-down menu
B33: Select a staff category | C33: This is the default list for personnel categories. ATTENTION! The categories can be changed if needed but please don't insert blank lines between 2 categories (otherwise the drop down menu will not work)
B34: Project managers
B35: Senior experts/advisors/researchers
B36: Junior experts/advisors/researchers
B37: Trainers/teachers
B38: Technical personnel
B39: Administrative personnel
A46: Which type of personnel cost rate?
B47: Drop-down menu
A48: =A28 -> A.6 [Category name] | B48: Select a type of rate | C48: This list contains the options for the types of rates available for the 'Other personnel costs'. ATTENTION! You must chose the rate provided for in your MGA (usually 'daily' or 'other').
B49: Monthly
B50: Daily
B51: Hourly
B52: Other
A54: =A29 -> A.7 [Category name] | B54: Select a type of rate | C54: This list contains the options for the types of rates available for the 'Other personnel costs'. ATTENTION! You must chose the rate provided for in your MGA (usually 'daily' or 'other').
B55: Monthly
B56: Daily
B57: Hourly
B58: Other
A61: Which type of costs (actual, lump sum or unit)?
A62: Travel and subsistence | C62: Actual | D62: Unit or Actual | E62: Subdivided 1=Yes / 0=No
A63: C.1. Travel and subsistence | E63: 1 | H63: 2
A64: Financial support to third parties | C64: Actual | D64: Unit | E64: Actual and Unit
A65: D.1. Financial Support | H65: 1
A66: Other cost categories | C66: Actual or Lump Sum | D66: Unit
A67: =A15 -> D.2 [Category name] | H67: 1
A68: =A16 -> D.3 [Category name] | H68: 1
A69: =A17 -> D.4 [Category name] | H69: 1
A70: =A18 -> D.5 [Category name] | H70: 1
A71: =A19 -> D.6 [Category name] | H71: 1
A73: Which type of funding rate?
A75: Single funding rate | H75: 1
A76: Multiple funding rates
A77: For Multiple funding rates: 1) Enter the formula for the calculation (see Annex 2 MGA) example (a1 + a2 + a3 + a4 + a5) * V% + b * W% + ( [c1]+ [c1a + c1b + c1c] + c2 + c3) * X% + (d1)* Y1% + d2* Y2%+ d3 * Y3%+ d4* Y4% + d5 * Y5%+ d6* Y6% + e * Z% | B77: (a1 + a2 + a3 + a4 + a5) * 70% + b * 70% + ( c1+ c2 + c3) * 70% + (d1) * 100% + (e) * 70%
A78: For Multiple funding rates: 2) Enter the rates per category
A79: Cost categories | B79: Rates | C79: Total costs | E79: EU contribution
A80: A. Personnel costs | B80: 0.7 | C80: ='4. Consolid table (participant)'!B22+'4. Consolid table (participant)'!C22+'4. Consolid table (participant)'!D22 -> 34900 | E80: =C80*B80 -> 24430
A81: B. Subcontracting costs | B81: 0.7 | C81: ='4. Consolid table (participant)'!G22 -> 0 | E81: 0
A82: C1. Travel and subsistence | B82: 0.7 | C82: ='4. Consolid table (participant)'!H22 -> 36800 | E82: 25760
A83: C2. Equipment | B83: 0.7 | C83: ='4. Consolid table (participant)'!L22 -> 1125 | E83: 787.5
A84: C3. Other goods, works and services | B84: 0.7 | C84: ='4. Consolid table (participant)'!M22 -> 0 | E84: 0
A85: D.1. Financial support to third parties | B85: 1 | C85: ='4. Consolid table (participant)'!N22 -> 0 | E85: 0
A86: =A15 -> D.2 [Category name] | B86: 1 | C86: ='4. Consolid table (participant)'!O22 -> 0 | E86: =C86*B86 -> 0
A87: =A16 -> D.3 [Category name] | B87: 1 | C87: ='4. Consolid table (participant)'!P22 -> 0 | E87: 0
A88: D.4 [Category name] | B88: 1 | C88: ='4. Consolid table (participant)'!Q22 -> 0 | E88: 0
A89: D.5 [Category name] | B89: 1 | C89: ='4. Consolid table (participant)'!R22 -> 0 | E89: 0
A90: D.6 [Category name] | B90: 1 | C90: ='4. Consolid table (participant)'!S22 -> 0 | E90: =C90*B90 -> 0
A91: E. Indirect costs | B91: 0.7 | C91: ='4. Consolid table (participant)'!T22 -> 5097.75 | E91: 3568.425
C92: =SUM(C80:C91) -> 77922.75 | E92: =SUM(E80:E91) -> 54545.925
A94: Below the display for each category and type cost
A95: C.1. Travel and subsistence costs
A96: Actual costs
B97: Costs (actual costs)
A98: 1 [Travel short name]
A99: Speakers
A100: Travel costs | B100: 0
A101: Accomodation costs | B101: 0
A102: Subsistence costs | B102: 0
A103: Personnel
A104: Travel costs | B104: 0
A105: Accomodation costs | B105: 0
A106: Subsistence costs | B106: 0
A107: Participants
A108: Travel costs | B108: 0
A109: Accomodation costs | B109: 0
A110: Subsistence costs | B110: 0
A111: Total travel costs | B111: =B100+B104+B108 -> 0
A112: Total accomodation | B112: =B101+B105+B109 -> 0
A113: Total subsistence | B113: =B102+B106+B110 -> 0
A114: Total travel and subsistence | B114: =B111+B112+B113 -> 0
A115: Unit or Actual costs
B116: Costs (actual costs) | C116: Costs (unit costs)
C117: Amount per unit | D117: Number of units | E117: Total (EUR)
A118: 1 [Travel short name]
A119: Speakers
A120: Travel costs | B120: 0 | C120: 0 | D120: 0 | E120: =C120*D120 -> 0
A121: Accomodation costs | B121: 0 | C121: 0 | D121: 0 | E121: =C121*D121 -> 0
A122: Subsistence costs | B122: 0 | C122: 0 | D122: 0 | E122: =C122*D122 -> 0
A123: Personnel
A124: Travel costs | B124: 0 | C124: 0 | D124: 0 | E124: =C124*D124 -> 0
A125: Accomodation costs | B125: 0 | C125: 0 | D125: 0 | E125: =C125*D125 -> 0
A126: Subsistence costs | B126: 0 | C126: 0 | D126: 0 | E126: =C126*D126 -> 0
A127: Participants
A128: Travel costs | B128: 0 | C128: 0 | D128: 0 | E128: =C128*D128 -> 0
A129: Accomodation costs | B129: 0 | C129: 0 | D129: 0 | E129: =C129*D129 -> 0
A130: Subsistence costs | B130: 0 | C130: 0 | D130: 0 | E130: =C130*D130 -> 0
A131: Total travel costs | B131: =B120+B124+B128+E120+E124+E128 -> 0
A132: Total accomodation | B132: =E121+E125+E129+B121+B125+B129 -> 0
A133: Total subsistence | B133: =E122+E126+E130+B122+B126+B130 -> 0
A134: Total travel and subsistence | B134: =B131+B132+B133 -> 0
A136: D.1. Financial support to third parties
A137: Actual costs
A138: Financial support to third parties | B138: Costs (actual costs)
A140: 1 [Support scheme short name] | B140: 0
A141: 1 [Support scheme short name] | B141: 0
A142: Total financial support 1 | B142: =B141+B140 -> 0
A143: Unit costs
A144: Financial support to third parties | C144: Costs (unit costs)
C145: Amount per unit | D145: Number of units | E145: Total (EUR)
A146: 1 [Support scheme short name]
A147: [divide scheme in parts if there are different subschemes or different unit costs, e.g. unit cost per host country) | C147: 0 | D147: 0 | E147: =C147*D147 -> 0
A148: Total financial support 1 | E148: =SUM(E146:E147) -> 0
A149: 2 [Support scheme short name]
A150: [divide scheme in parts if there are different subschemes or different unit costs, e.g. unit cost per host country) | C150: 0 | D150: 0 | E150: =C150*D150 -> 0
A151: Total financial support 2 | E151: =SUM(E149:E150) -> 0
A152: Actual and Unit costs
A153: Financial support to third parties | B153: Costs (actual costs) | C153: Costs (unit costs)
C154: Amount per unit | D154: Number of units | E154: Total (EUR)
A155: 1 [Support scheme short name]
A156: [divide scheme in parts if there are different subschemes or different unit costs, e.g. unit cost per host country) | B156: 0 | C156: 0 | D156: 0 | E156: =C156*D156 -> 0
A157: Total financial support 1 | E157: =SUM(E155:E156) -> 0
A158: 2 [Support scheme short name]
A159: [divide scheme in parts if there are different subschemes or different unit costs, e.g. unit cost per host country) | B159: 0 | C159: 0 | D159: 0 | E159: =C159*D159 -> 0
A160: Total financial support 2 | E160: =SUM(E158:E159) -> 0
A162: D.2.; D.3.; D.4.; D.5.[category name]
A163: Actual costs or Lump sum
A164: D.2.; D.3.; D.4.; D.5.;D.6 [category name] | B164: Costs (actual costs or lump sum)
A166: [Category name] | B166: 0
A167: Total other cost category for this WP | B167: =B166 -> 0
A168: Unit costs
A169: D.2.; D.3.; D.4.; D.5.;D.6 [category name] | C169: Costs (unit costs)
C170: Amount per unit | D170: Number of units | E170: Total (EUR)
A171: [Category name] | C171: 0 | D171: 0 | E171: =C171*D171 -> 0
A172: Total other cost category for this WP | E172: =SUM(G171:G171) -> 0

Sheet EC Format
A1: A. Personnel costs | J1: Row to add/delete & Height row | K1: Number to 0 | L1: Text to blank | M1: Row to hide
A2: WORK PACKAGE 1 | J2: F-18
B3: A.1 Employees (or equivalent) | J3: F-18 | M3: Shown
B4: Select a staff category | C4: monthly | D4: 0 | E4: 0 | F4: =E4*D4 -> 0 | J4: Last | K4: 4#5 | L4: 8#9 | M4: Shown
B5: Select a staff category | C5: monthly | D5: 0 | E5: 0 | F5: =E5*D5 -> 0 | J5: Authorised | K5: 4#5 | L5: 8#9 | M5: Shown
B6: Other | J6: F-18 | M6: Shown
B7: [category 1] | C7: monthly | D7: 0 | E7: 0 | F7: =E7*D7 -> 0 | J7: Last | K7: 4#5 | L7: 8#9 | M7: Shown
B8: [category 2] | C8: monthly | D8: 0 | E8: 0 | F8: =E8*D8 -> 0 | J8: Authorised | K8: 4#5 | L8: 8#9 | M8: Shown
B9: Total employees (or equivalent) | F9: =SUM(F3:F8) -> 0 | J9: F-18 | M9: Shown
B10: A.2 + A.3 Natural persons under direct contract and seconded persons | J10: F-18 | M10: Shown
B11: Select a staff category | C11: monthly | D11: 0 | E11: 0 | F11: =D11*E11 -> 0 | J11: Last | K11: 4#5 | L11: 8#9 | M11: Shown
B12: Select a staff category | C12: monthly | D12: 0 | E12: 0 | F12: =D12*E12 -> 0 | J12: Authorised | K12: 4#5 | L12: 8#9 | M12: Shown
B13: Other | J13: F-18 | M13: Shown
B14: [category 1] | C14: monthly | D14: 0 | E14: 0 | F14: =D14*E14 -> 0 | J14: Last | K14: 4#5 | L14: 8#9 | M14: Shown
B15: [category 2] | C15: monthly | D15: 0 | E15: 0 | F15: =D15*E15 -> 0 | J15: Authorised | K15: 4#5 | L15: 8#9 | M15: Shown
B16: Total natural persons under direct contract and seconded persons | F16: =SUM(F10:F15) -> 0 | J16: F-18 | M16: Shown
B17: A.4 SME owners and natural person beneficiaries without salary | J17: F-18 | M17: Shown
B18: SME owners/natural person beneficiaries without salary | C18: daily | D18: 0 | E18: 0 | F18: =D18*E18 -> 0 | J18: Last | K18: 4#5 | L18: 8#9 | M18: Shown
B19: Total SME owners and natural person beneficiaries without salary | F19: =SUM(F17:F18) -> 0 | J19: F-18 | M19: Shown
B20: A.5 Volunteers | J20: F-18 | M20: Hidden
B21: Volunteers | C21: daily | D21: 0 | E21: 0 | F21: =D21*E21 -> 0 | J21: Last | K21: 4#5 | L21: 8#9 | M21: Hidden
B22: Total Volunteers | F22: =SUM(F20:F21) -> 0 | J22: F-18 | M22: Hidden
B23: A.6 [Category name] | J23: F-18 | M23: Hidden
B24: Other personnel costs A.6 | C24: Select a type of rate | D24: 0 | E24: 0 | F24: =D24*E24 -> 0 | J24: Last | K24: 4#5 | L24: 8#9 | M24: Hidden
B25: Total other personnel costs A.6 | F25: =SUM(F23:F24) -> 0 | J25: F-18 | M25: Hidden
B26: A.7 [Category name] | J26: F-18 | M26: Hidden
B27: Other personnel costs A.7 | C27: Select a type of rate | D27: 0 | E27: 0 | F27: =D27*E27 -> 0 | J27: Last | K27: 4#5 | L27: 8#9 | M27: Hidden
B28: Total other personnel costs A.7 | F28: =SUM(F26:F27) -> 0 | J28: F-18 | M28: Hidden
B29: Total personnel for this WP | F29: =F16+F9+F19+F22+F25+F28 -> 0 | J29: F-18
A31: B. Subcontracting costs
A32: WORK PACKAGE 1 | J32: F-18
B33: 1 [Subcontract short name] | C33: 0 | J33: Last | K33: 3 | L33: 2#8#9
B34: 2 [Subcontract short name] | C34: 0 | J34: Authorised | K34: 3 | L34: 2#8#9
B35: Total subcontracting for this WP | C35: =SUM(C32:C34) -> 0 | J35: F-18
A37: C. Purchase costs
A38: WORK PACKAGE 1
B39: Total travel costs for this WP | C39: 0 | J39: F-18 | M39: Shown
B40: Total accomodation costs for this WP | C40: 0 | J40: F-18 | M40: Shown
B41: Total subsistence costs for this WP | C41: 0 | J41: F-18 | M41: Shown
B42: Total travel for this WP | C42: =C39+C40+C41 -> 0 | F42: 0 | J42: F-18
A43: C.1. Travel and subsistence
A44: WORK PACKAGE 1 | J44: F-18
B45: 1 [Travel short name] | J45: F-18
B46: Speakers | J46: F-18
B47: Travel costs | C47: 0 | D47: 0 | E47: 0 | F47: =D47*E47 -> 0 | J47: F-18
B48: Accomodation costs | C48: 0 | D48: 0 | E48: 0 | F48: =D48*E48 -> 0 | J48: F-18
B49: Subsistence costs | C49: 0 | D49: 0 | E49: 0 | F49: =D49*E49 -> 0 | J49: F-18
B50: Personnel | J50: F-18
B51: Travel costs | C51: 0 | D51: 0 | E51: 0 | F51: =D51*E51 -> 0 | J51: F-18
B52: Accomodation costs | C52: 0 | D52: 0 | E52: 0 | F52: =D52*E52 -> 0 | J52: F-18
B53: Subsistence costs | C53: 0 | D53: 0 | E53: 0 | F53: =D53*E53 -> 0 | J53: F-18
B54: Participants | J54: F-18
B55: Travel costs | C55: 0 | D55: 0 | E55: 0 | F55: =D55*E55 -> 0 | J55: F-18
B56: Accomodation costs | C56: 0 | D56: 0 | E56: 0 | F56: =D56*E56 -> 0 | J56: F-18
B57: Subsistence costs | C57: 0 | D57: 0 | E57: 0 | F57: =D57*E57 -> 0 | J57: F-18
B58: Total travel costs for this travel | C58: =C47+C51+C55+F47+F51+F55 -> 0 | J58: F-18 | M58: Shown
B59: Total accomodation costs for this travel | C59: =F48+F52+F56+C48+C52+C56 -> 0 | J59: F-18 | M59: Shown
B60: Total subsistence costs for this travel | C60: =F49+F53+F57+C49+C53+C57 -> 0 | J60: F-18 | M60: Shown
B61: Total travel | C61: =C58+C59+C60 -> 0 | J61: F-18
B62: Total travel for this WP | C62: 0 | F62: 0 | J62: F-18
A63: C.2. Equipment | J63: F-18
A64: WORK PACKAGE 1 | J64: F-18
B65: C.2.1 Purchase (depreciation/full cost) | J65: F-18
C66: Costs (actual costs) | H66: Also part of other work packages? YES/NO and which WP | I66: Description of tasks/activities for which the equipment is needed
C67: Price | D67: Depreciation method (e.g. 36 month or 60 month) | E67: Number of months allocated to the action | F67: Rate of use for the action (100% or less if used also for other purposes) | G67: Total (EUR)
C70: a | D70: b | E70: c | F70: d | G70: e =(c/b *d) * a
B71: 1 [Equipment short name] | C71: 0 | D71: 0 | E71: 0 | F71: 0 | G71: =IF(D71=0,0,((E71/D71)*F71)*C71) -> 0 | J71: Last | K71: 3#4#5#6 | L71: 2#8#9
B72: 2 [Equipment short name] | C72: 0 | D72: 0 | E72: 0 | F72: 0 | G72: =IF(D72=0,0,((E72/D72)*F72)*C72) -> 0 | J72: Authorised | K72: 3#4#5#6 | L72: 2#8#9
B73: 3 [Equipment short name] | C73: 0 | D73: ATTENTION! Can be used only if full cost option in the grant agreement | G73: =C73 -> 0 | J73: Last | K73: 3 | L73: 2#8#9 | M73: HR
B74: Total depreciation | G74: =SUM(G70:G73) -> 0 | J74: F-18
B75: C.2.2 Rental and leasing (rate of use/full cost) | J75: F-18
C76: Costs (actual costs) | H76: Also part of other work packages? YES/NO and which WP | I76: Description of tasks/activities for which the equipment is needed
C77: Monthly rent/fee | D77: Number of months of use for the action | F77: Rate of use for the action (100% or less if used also for other purposes) | G77: Total (EUR)
C78: a | D78: b | F78: c | G78: d= a*b*c
B79: 1 [Equipment short name] | C79: 0 | D79: 0 | F79: 0 | G79: =C79*D79*F79 -> 0 | J79: Last | K79: 3#4#5#6 | L79: 2#8#9
B80: 2 [Equipment short name] | C80: 0 | D80: 0 | F80: 0 | G80: =C80*D80*F80 -> 0 | J80: Authorised | K80: 3#4#5#6 | L80: 2#8#9
B81: 3 [Equipment short name] | C81: 0 | D81: ATTENTION! Can be used only if full cost option in the grant agreement | G81: =C81 -> 0 | J81: Last | K81: 3 | L81: 2#8#9
B82: Total rental and leasing | G82: =SUM(G78:G81) -> 0 | J82: F-18
B83: Total equipment for this WP | G83: =G82+G74 -> 0 | J83: F-18
A84: C.3. Other goods, works and services | J84: F-18
A85: WORK PACKAGE 1 | J85: F-18
C86: Costs (actual costs) | H86: Also part of other work packages? YES/NO and which WP | I86: Description of tasks/activities for which the goods/services are needed; types of goods services needed; how much
J87: F-18
B88: Consumables | C88: 0 | J88: F-18
B89: Conferences, seminars, workshops, trainings & events | C89: 0 | J89: F-18
B90: Information & publications | C90: 0 | J90: F-18
B91: Other expenses | J91: F-18
B92: 1 IPR costs | C92: 0 | J92: F-18
B93: 2 Bank fees (pre-financing guarantee) | C93: 0 | J93: F-18
B94: 3 Audit fees (CFS) | C94: 0 | J94: F-18
B95: 4 Project evaluation | C95: 0 | J95: F-18
B96: [5 short name other] | C96: 0 | J96: Last | K96: 3 | L96: 2#8#9
B97: [6 short name other] | C97: 0 | J97: Authorised | K97: 3 | L97: 2#8#9
A98: Total goods, works and services for this WP | C98: =SUM(C88:C97) -> 0 | J98: F-18
A99: D. Other cost categories
A100: D.1. Financial support to third parties | J100: F-18 | M100: Hidden
A101: WORK PACKAGE 1 | J101: F-18 | M101: Hidden
H102: Also used for other work packages? YES/NO and which WP | I102: Description of support scheme (estimated number of recipients; maximum amount per recipient) | J102: F-18 | M102: Hidden
B103: Financial support to third parties | C103: Costs (actual costs) | J103: F-18 | M103: Hidden
J104: F-18 | M104: Hidden
B105: [Support scheme short name] | C105: 0 | J105: F-18 | M105: Hidden
B106: [Support scheme short name] | C106: 0 | J106: Last | K106: 3 | L106: 2#8#9 | M106: Hidden
C107: =SUM(C104:C106) -> 0 | J107: F-18 | M107: Hidden
D108: Costs (unit costs) | J108: F-18 | M108: Hidden
B109: Financial support to third parties | C109: Actual costs | D109: Amount per unit | E109: Number of units | F109: Total | J109: F-18 | M109: Hidden
M110: Hidden
B111: 1 [Support scheme short name] | J111: F-18 | M111: Hidden
B112: [divide scheme in parts if there are different subschemes or different unit costs, e.g. unit cost per host country) | D112: 0 | E112: 0 | F112: =D112*E112 -> 0 | J112: Last | K112: 4#5 | L112: 7#8#9 | M112: Hidden
B113: Total financial support 1 | F113: =SUM(F111:F112) -> 0 | J113: F-18 | M113: Hidden
B114: 2 [Support scheme short name] | J114: F-18 | M114: Hidden
B115: [divide scheme in parts if there are different subschemes or different unit costs, e.g. unit cost per host country) | D115: 0 | E115: 0 | F115: =D115*E115 -> 0 | J115: Last | K115: 4#5 | L115: 7#8#9 | M115: Hidden
B116: Total financial support 2 | F116: =SUM(F114:F115) -> 0 | J116: F-18 | M116: Hidden
D117: Costs (unit cost) | J117: F-18 | M117: Hidden
B118: Financial support to third parties | C118: Costs (actual costs) | D118: Amount per unit | E118: Number of units | F118: Total | J118: F-18 | M118: Hidden
J119: F-18 | M119: Hidden
B120: 1 [Support scheme short name] | J120: F-18 | M120: Hidden
B121: [divide scheme in parts if there are different subschemes or different unit costs, e.g. unit cost per host country) | C121: 0 | D121: 0 | E121: 0 | F121: =D121*E121 -> 0 | J121: Last | K121: 3#4#5 | L121: 2#8#9 | M121: Hidden
C122: =SUM(C120:C121) -> 0 | D122: Total financial support 1 | F122: =SUM(F120:F121)+C122 -> 0 | J122: F-18 | M122: Hidden
B123: 2 [Support scheme short name] | J123: F-18 | M123: Hidden
B124: [divide scheme in parts if there are different subschemes or different unit costs, e.g. unit cost per host country) | C124: 0 | D124: 0 | E124: 0 | F124: =D124*E124 -> 0 | J124: Last | K124: 3#4#5 | L124: 2#8#9 | M124: Hidden
C125: =SUM(C123:C124) -> 0 | D125: Total financial support 2 | F125: =SUM(F123:F124)+C125 -> 0 | J125: F-18 | M125: Hidden
B126: Total other cost category D.1 for this WP | C126: =C107+F113+F116+F122+F125 -> 0 | J126: F-18 | M126: Hidden
A127: ='EC Data'!A15 -> D.2 [Category name] | J127: F-18 | M127: Hidden
A128: WORK PACKAGE 1 | J128: F-18 | M128: Hidden
C129: Costs (actual costs) | H129: Also used for other work packages? YES/NO and which WP | I129: Description of the tasks/activities | J129: F-18 | M129: Hidden
J130: F-18 | M130: Hidden
B131: Other cost category D.2 | C131: 0 | J131: F-18 | K131: 3 | L131: 2#8#9 | M131: Hidden
C132: =SUM(C129:C131) -> 0 | J132: F-18 | M132: Hidden
D133: Costs (unit costs) | H133: Also used for other work packages? YES/NO and which WP | I133: Description of the tasks/activities | J133: F-18 | M133: Hidden
D134: Amount per unit | E134: Number of units | F134: Total (EUR) | J134: F-18 | M134: Hidden
B135: Other cost category D.2 | D135: 0 | E135: 0 | F135: =D135*E135 -> 0 | J135: F-18 | K135: 4#5 | L135: 7#8#9 | M135: Hidden
B136: Total other cost category D.2 for this WP | C136: =C132+F136 -> 0 | F136: =SUM(F134:F135) -> 0 | J136: F-18 | M136: Hidden
A137: ='EC Data'!A16 -> D.3 [Category name] | J137: F-18 | M137: Shown
A138: WORK PACKAGE 1 | J138: F-18 | M138: Hidden
C139: Costs (actual costs) | H139: Also used for other work packages? YES/NO and which WP | I139: Description of the tasks/activities | J139: F-18 | M139: Hidden
J140: F-18 | M140: Hidden
B141: Other cost category D.3 | C141: 0 | J141: F-18 | K141: 3 | L141: 2#8#9 | M141: Hidden
C142: =SUM(C139:C141) -> 0 | J142: F-18 | M142: Hidden
D143: Costs (unit costs) | H143: Also used for other work packages? YES/NO and which WP | I143: Description of the tasks/activities | J143: F-18 | M143: Hidden
D144: Amount per unit | E144: Number of units | F144: Total (EUR) | J144: F-18 | M144: Hidden
B145: Other cost category D.3 | D145: 0 | E145: 0 | F145: =D145*E145 -> 0 | J145: F-18 | K145: 4#5 | L145: 7#8#9 | M145: Hidden
B146: Total other cost category D.3 for this WP | C146: =C142+F146 -> 0 | F146: =SUM(F144:F145) -> 0 | J146: F-18 | M146: Hidden
A147: ='EC Data'!A17 -> D.4 [Category name] | J147: F-18 | M147: Shown
A148: WORK PACKAGE 1 | J148: F-18 | M148: Hidden
C149: Costs (actual costs) | H149: Also used for other work packages? YES/NO and which WP | I149: Description of the tasks/activities | J149: F-18 | M149: Hidden
J150: F-18 | M150: Hidden
B151: Other cost category D.4 | C151: 0 | J151: F-18 | K151: 3 | L151: 2#8#9 | M151: Hidden
C152: =SUM(C149:C151) -> 0 | J152: F-18 | M152: Hidden
D153: Costs (unit cost) | H153: Also used for other work packages? YES/NO and which WP | I153: Description of the tasks/activities | J153: F-18 | M153: Hidden
D154: Amount per unit | E154: Number of units | F154: Total (EUR) | J154: F-18 | M154: Hidden
B155: Other cost category D.4 | D155: 0 | E155: 0 | F155: =D155*E155 -> 0 | J155: F-18 | K155: 4#5 | L155: 7#8#9 | M155: Hidden
B156: Total other cost category D.4 for this WP | C156: =C152+F156 -> 0 | F156: =SUM(F154:F155) -> 0 | J156: F-18 | M156: Hidden
A157: ='EC Data'!A18 -> D.5 [Category name] | J157: F-18 | M157: Shown
A158: WORK PACKAGE 1 | J158: F-18 | M158: Hidden
C159: Costs (actual costs) | H159: Also used for other work packages? YES/NO and which WP | I159: Description of the tasks/activities | J159: F-18 | M159: Hidden
J160: F-18 | M160: Hidden
B161: Other cost category D.5 | C161: 0 | J161: F-18 | K161: 3 | L161: 2#8#9 | M161: Hidden
C162: =SUM(C159:C161) -> 0 | J162: F-18 | M162: Hidden
D163: Costs (unit costs) | H163: Also used for other work packages? YES/NO and which WP | I163: Description of the tasks/activities | J163: F-18 | M163: Hidden
D164: Amount per unit | E164: Number of units | F164: Total (EUR) | J164: F-18 | M164: Hidden
B165: Other cost category D.5 | D165: 0 | E165: 0 | F165: =D165*E165 -> 0 | J165: F-18 | K165: 4#5 | L165: 7#8#9 | M165: Hidden
B166: Total other cost category D.5 for this WP | C166: =C162+F166 -> 0 | F166: =SUM(F164:F165) -> 0 | J166: F-18 | M166: Hidden
A167: ='EC Data'!A19 -> D.6 [Category name] | J167: F-18 | M167: Hidden
A168: WORK PACKAGE 1 | J168: F-18 | M168: Hidden
C169: Costs (actual costs) | H169: Also used for other work packages? YES/NO and which WP | I169: Description of the tasks/activities | J169: F-18 | M169: Hidden
J170: F-18 | M170: Hidden
B171: Other cost category D.6 | C171: 0 | J171: Last | K171: 3 | L171: 2#8#9 | M171: Hidden
C172: =SUM(C169:C171) -> 0 | M172: Hidden
D173: Costs (unit costs) | H173: Also used for other work packages? YES/NO and which WP | I173: Description of the tasks/activities | J173: F-18 | M173: Hidden
D174: Amount per unit | E174: Number of units | F174: Total (EUR) | J174: F-18 | M174: Hidden
B175: Other cost category D.6 | D175: 0 | E175: 0 | F175: =D175*E175 -> 0 | J175: Last | K175: 4#5 | L175: 7#8#9 | M175: Hidden
B176: Total other cost category D.6 for this WP | C176: =C172+F176 -> 0 | F176: =SUM(F174:F175) -> 0 | J176: F-18 | M176: Hidden
A177: Consolidated table
B178: 0 | C178: 0 | D178: 0 | E178: 0 | F178: 0 | G178: 0 | H178: 0 | I178: 0 | J178: 0 | K178: 0 | L178: 0 | M178: 0 | N178: 0 | O178: 0 | P178: 0 | Q178: 0 | R178: 0 | S178: 0 | T178: 0 | U178: 0 | W178: Shown

Sheet 1. Instructions
A1: INSTRUCTIONS (DETAILED BUDGET TABLE ACTION GRANTS — PROPOSAL/GRANT PREPARATION)
A3: General
A4: The file is composed of 5 sheets (Instructions, Start, Detailed table, Consolidated table (participants) and Consolidated table (project)) which must be used to create your detailed budget table.
A5: Depending on the instructions in the call document, you should submit the budget table either as part of your proposal and/or during grant preparation: - for proposal: merge, scan and attach it as a single PDF to your Application Form Part B (Funding & Tenders Portal Submission System; only sheets 3, 4, and 5 needed; for sheets 3 and 4: one per beneficiary/affiliated entity; more details on technical instructions are in the Online Manual) - for grant preparation (if needed, after changes requested by the EU): merge, scan and attach it as a single PDF to your Desription of the Action (DoA) Part B (Funding & Tenders Portal Grant Preparation tool). ATTENTION! You may be asked to provide an Excel file by email during evaluation and grant preparation, if needed.
A6: The budget table is broken down by cost category and work packages. For technical reasons the number of work packages has to be the same in all categories. Please leave them empty, if there are no costs.
A15: The budgeted amounts should be based on detailed, reasonable and accurate estimates. Keep sufficient documentation to be able to explain them if requested.
A16: Please take care to insert only costs that are eligible under the EU grant agreement (see eligibility article). All estimated costs must be entered in EUR.
A17: You will be asked to fill in a similar table later on for cost reporting before payments (Funding & Tenders Portal Periodic Reporting tool). Contrary to this table, the cost reporting table should however NOT contain the estimated costs, but the really incurred costs.
A19: Getting started
A20: To use the file, the Excel Macro security settings must be enabled on your computer. This is managed and checked when opening the file, but contact your IT support if you encounter problems.
A21: Download the file: Before downloading close all other excel files (open excel files may hamper the macros). Download the file from the Portal using EDIT WORKBOOK - EDIT IN EXCEL - SAVE AS to save a copy on your desktop. Then close the document and re-open it.
A22: Please complete the sheets in their order (Start - Detailed budget table - Consolidated table (participants) - Consolidated table (project)).
A23: ATTENTION! White cells mean that you are required to enter data. Blue cells are calculated automatically.
A25: Start sheet
A26: Use this sheet to define the generic data (project/participant name and PIC), the work packages (number and names) and the number of travels. This information will be automatically copied into the other sheets.
A27: Provide a short name, a description for the work package and confirm the number of travels linked to it.
A28: To add a work package, click on 'Add a new WP', enter the name and description (name in ALL CAPITALS) and click on 'Update Detailed Budget Table
A29: To delete a work package, tick the check box and click on 'Update Detailed Budget Table'.
A30: Travels can be increased or decreased by changing the number and clicking on 'Update detailed budget table'.
A31: Attention! If you delete work packages or travels on the start sheet AFTER having already started working on the other sheets: - the work package and all costs will be automatically deleted - the travel and all costs will be deleted (from the bottom to the top - the last travel will be deleted first).
A33: Detailed budget table sheet
A34: Use this sheet to enter the budget for each cost category and work package.
A35: New lines can be added only when column B is white. Select the cell B on the line that should be added and click on 'Add new line'.
A36: Sub-totals and totals are calculated automatically.
A47: Consolidated table (participant) sheet
A48: This sheet shows your budget overview, per work package and cost category. It is calculated automatically.
A50: Consolidated table (project) sheet
A51: This sheet shows the budget overview for the project, per beneficiary, work package and cost category. It needs to be assembled manually by the coordinator on the basis of the detailed budget tables/consolidated budget tables filled out by the participants.
A53: Unprotect sheets
A54: If case of absolute necessity, you can unprotect the sheets via the button below. Pay attention to not delete formula or change the configuration of the file. All lines or columns are needed for the macros.

Sheet 2. Start
A1: START (DETAILED BUDGET TABLE — PROPOSAL/GRANT PREPARATION)
A3: PROJECT DATA
A4: Project number: | C4: 210747735
A5: Project acronym: | C5: FORMATEX23
A6: Participant short name:
A7: Participant PIC:
A11: WORK PACKAGES & TRAVELS
A16: Index | B16: Name | C16: Description | D16: Number of travels | E16: Delete
A17: 1 | B17: PROJECT MANAGEMENT | C17: Project and Information Management, Quality Management, Project Controlling, Reporting and documentation | D17: 3 | F17: 1
A18: 2 | B18: PLANNING | C18: Kick-off meeting Brussels and Consortium Kick-Off Meeting, Scenario development for TTX & FSX, Preparation of planning conferences, Planning TTX (incl. Mel/Mil/Injects), Planning FSX (incl. Mel/Mil/Injects), Logistical Planning of all events | D18: 3 | F18: 1
A19: 3 | B19: EXERCISE CONDUCT | C19: Conduct TTX, Conduct FSX | D19: 2 | F19: 1
A20: 4 | B20: DISSEMINATION & VISIBILITY | C20: On-site visibility, Lay-man report, Website, Media work, events, Production of brochures and films, VIP programme and dissemination to other projects | D20: 1 | F20: 1
A21: 5 | B21: EVALUATION | C21: Evaluation Workshop, Evaluation Refresher, Post Exercise Discussion, Project Evaluation and Monitoring | D21: 2 | F21: 1
A22: 6 | B22: WAY FORWARD WORKSHOPS AND SEMINARS | C22: Way Forward Meeting, NATECH Seminar | D22: 2 | F22: 1

Sheet 3. Detailed table
A1: a | J1: Row to add/delete & Height row | K1: Number to 0 | L1: Text to blank | M1: Row to hide
A3: EU GRANTS DETAILED BUDGET TABLE (ACTION GRANTS) | J3: F-28
A5: Project number: | B5: =IF(ISBLANK('2. Start'!C4)," ",'2. Start'!C4) -> 210747735 | I5: 2021-06-02T12:35:13 | J5: F-18
A6: Project acronym: | B6: =IF(ISBLANK('2. Start'!C5)," ",'2. Start'!C5) -> FORMATEX23 | J6: F-18
A7: Participant short name: | B7: =IF(ISBLANK('2. Start'!C6)," ",'2. Start'!C6) ->  | J7: F-18
A8: Participant PIC: | B8: =IF(ISBLANK('2. Start'!C7)," ",'2. Start'!C7) ->  | J8: F-18
A10: ATTENTION: This table should be filled out one per participant (beneficiary, affiliated entity) | J10: F-18
A11: ATTENTION: This table may ONLY contain eligible costs (i.e. costs that comply with the eligibility rules of the grant agreement that is part of your call documents). At proposal stage and during grant preparation, it should contain estimated costs/income. Costs must be estimated in EUR. | J11: F-18
A12: ATTENTION! List each budgeted cost item ONLY once in this table, for the main WP. | J12: F-18
A13: ATTENTION! White cells mean that you are required to enter data. Blue cells are calculated automatically. | J13: F-18
A15: EU PROJECT BUDGET TABLE (PER PARTICIPANT) | J15: F-28
A16: PROJECT COSTS | J16: F-28
A17: A. Personnel costs | J17: F-24
C18: Costs (actual costs) | H18: Also working for other work packages? YES/NO and which WP | I18: Description of project role/activities/responsibilities
C19: Type of rate (monthly/other) | D19: Rate (amount) | E19: Time (months/other of work on the action) | F19: Total (EUR) | J19: F-28
D20: a | E20: b | F20: c = a * b | J20: F-24
A21: WORK PACKAGE 1 | B21: =IDX_WP_Name_1 -> PROJECT MANAGEMENT | J21: F-18
B22: A.1 Employees (or equivalent) | J22: F-18 | M22: Shown
B23: Senior experts/advisors/researchers | C23: monthly | D23: 4800 | E23: 2.5 | F23: =E23*D23 -> 12000 | H23: YES 1,2,3,6 | I23: Coordinator/Participant to the planning conferences/CBRN Adviser and Civil Protection Expert | J23: Last | K23: 4#5 | L23: 8#9 | M23: Shown
B24: Administrative personnel | C24: monthly | D24: 3600 | E24: 1.5 | F24: =E24*D24 -> 5400 | H24: YES 1,2,3,6 | I24: Support to Coordinator | J24: Authorised | K24: 4#5 | L24: 8#9 | M24: Shown
B25: Other | J25: F-18 | M25: Shown
B26: [category 1] | C26: monthly | D26: 0 | E26: 0 | F26: =E26*D26 -> 0 | J26: Last | K26: 4#5 | L26: 8#9 | M26: Shown
B27: [category 2] | C27: monthly | D27: 0 | E27: 0 | F27: =E27*D27 -> 0 | J27: Authorised | K27: 4#5 | L27: 8#9 | M27: Shown
B28: Total employees (or equivalent) | F28: =SUM(F22:F27) -> 17400 | J28: F-18 | M28: Shown
B29: A.2 + A.3 Natural persons under direct contract and seconded persons | J29: F-18 | M29: Shown
B30: Select a staff category | C30: monthly | D30: 0 | E30: 0 | F30: =D30*E30 -> 0 | J30: Last | K30: 4#5 | L30: 8#9 | M30: Shown
B31: Select a staff category | C31: monthly | D31: 0 | E31: 0 | F31: =D31*E31 -> 0 | J31: Authorised | K31: 4#5 | L31: 8#9 | M31: Shown
B32: Other | J32: F-18 | M32: Shown
B33: [category 1] | C33: monthly | D33: 0 | E33: 0 | F33: =D33*E33 -> 0 | J33: Last | K33: 4#5 | L33: 8#9 | M33: Shown
B34: [category 2] | C34: monthly | D34: 0 | E34: 0 | F34: =D34*E34 -> 0 | J34: Authorised | K34: 4#5 | L34: 8#9 | M34: Shown
B35: Total natural persons under direct contract and seconded persons | F35: =SUM(F29:F34) -> 0 | J35: F-18 | M35: Shown
B36: A.4 SME owners and natural person beneficiaries without salary | J36: F-18 | M36: Hidden
B37: SME owners/natural person beneficiaries without salary | C37: daily | D37: 0 | E37: 0 | F37: =D37*E37 -> 0 | J37: Last | K37: 4#5 | L37: 8#9 | M37: Hidden
B38: Total SME owners and natural person beneficiaries without salary | F38: =SUM(F36:F37) -> 0 | J38: F-18 | M38: Hidden
B39: A.5 Volunteers | J39: F-18 | M39: Hidden
B40: Volunteers | C40: daily | D40: 0 | E40: 0 | F40: =D40*E40 -> 0 | J40: Last | K40: 4#5 | L40: 8#9 | M40: Hidden
B41: Total Volunteers | F41: =SUM(F39:F40) -> 0 | J41: F-18 | M41: Hidden
B42: A.6 [Category name] | J42: F-18 | M42: Hidden
B43: Other personnel costs A.6 | C43: Select a type of rate | D43: 0 | E43: 0 | F43: =D43*E43 -> 0 | J43: Last | K43: 4#5 | L43: 8#9 | M43: Hidden
B44: Total other personnel costs A.6 | F44: =SUM(F42:F43) -> 0 | J44: F-18 | M44: Hidden
B45: A.7 [Category name] | J45: F-18 | M45: Hidden
B46: Other personnel costs A.7 | C46: Select a type of rate | D46: 0 | E46: 0 | F46: =D46*E46 -> 0 | J46: Last | K46: 4#5 | L46: 8#9 | M46: Hidden
B47: Total other personnel costs A.7 | F47: =SUM(F45:F46) -> 0 | J47: F-18 | M47: Hidden
B48: Total personnel for this WP | F48: =F35+F28+F38+F41+F44+F47 -> 17400 | J48: F-18
A49: WORK PACKAGE 2 | B49: =IDX_WP_Name_2 -> PLANNING | J49: F-18
B50: A.1 Employees (or equivalent) | J50: F-18 | M50: Shown
B51: Select a staff category | C51: monthly | D51: 0 | E51: 0 | F51: =E51*D51 -> 0 | J51: Last | K51: 4#5 | L51: 8#9 | M51: Shown
B52: Select a staff category | C52: monthly | D52: 0 | E52: 0 | F52: =E52*D52 -> 0 | J52: Authorised | K52: 4#5 | L52: 8#9 | M52: Shown
B53: Other | J53: F-18 | M53: Shown
B54: [category 1] | C54: monthly | D54: 0 | E54: 0 | F54: =E54*D54 -> 0 | J54: Last | K54: 4#5 | L54: 8#9 | M54: Shown
B55: [category 2] | C55: monthly | D55: 0 | E55: 0 | F55: =E55*D55 -> 0 | J55: Authorised | K55: 4#5 | L55: 8#9 | M55: Shown
B56: Total employees (or equivalent) | F56: =SUM(F50:F55) -> 0 | J56: F-18 | M56: Shown
B57: A.2 + A.3 Natural persons under direct contract and seconded persons | J57: F-18 | M57: Shown
B58: Select a staff category | C58: monthly | D58: 0 | E58: 0 | F58: =D58*E58 -> 0 | J58: Last | K58: 4#5 | L58: 8#9 | M58: Shown
B59: Select a staff category | C59: monthly | D59: 0 | E59: 0 | F59: =D59*E59 -> 0 | J59: Authorised | K59: 4#5 | L59: 8#9 | M59: Shown
B60: Other | J60: F-18 | M60: Shown
B61: [category 1] | C61: monthly | D61: 0 | E61: 0 | F61: =D61*E61 -> 0 | J61: Last | K61: 4#5 | L61: 8#9 | M61: Shown
B62: [category 2] | C62: monthly | D62: 0 | E62: 0 | F62: =D62*E62 -> 0 | J62: Authorised | K62: 4#5 | L62: 8#9 | M62: Shown
B63: Total natural persons under direct contract and seconded persons | F63: =SUM(F57:F62) -> 0 | J63: F-18 | M63: Shown
B64: A.4 SME owners and natural person beneficiaries without salary | J64: F-18 | M64: Hidden
B65: SME owners/natural person beneficiaries without salary | C65: daily | D65: 0 | E65: 0 | F65: =D65*E65 -> 0 | J65: Last | K65: 4#5 | L65: 8#9 | M65: Hidden
B66: Total SME owners and natural person beneficiaries without salary | F66: =SUM(F64:F65) -> 0 | J66: F-18 | M66: Hidden
B67: A.5 Volunteers | J67: F-18 | M67: Hidden
B68: Volunteers | C68: daily | D68: 0 | E68: 0 | F68: =D68*E68 -> 0 | J68: Last | K68: 4#5 | L68: 8#9 | M68: Hidden
B69: Total Volunteers | F69: =SUM(F67:F68) -> 0 | J69: F-18 | M69: Hidden
B70: A.6 [Category name] | J70: F-18 | M70: Hidden
B71: Other personnel costs A.6 | C71: Select a type of rate | D71: 0 | E71: 0 | F71: =D71*E71 -> 0 | J71: Last | K71: 4#5 | L71: 8#9 | M71: Hidden
B72: Total other personnel costs A.6 | F72: =SUM(F70:F71) -> 0 | J72: F-18 | M72: Hidden
B73: A.7 [Category name] | J73: F-18 | M73: Hidden
B74: Other personnel costs A.7 | C74: Select a type of rate | D74: 0 | E74: 0 | F74: =D74*E74 -> 0 | J74: Last | K74: 4#5 | L74: 8#9 | M74: Hidden
B75: Total other personnel costs A.7 | F75: =SUM(F73:F74) -> 0 | J75: F-18 | M75: Hidden
B76: Total personnel for this WP | F76: =F63+F56+F66+F69+F72+F75 -> 0 | J76: F-18
A77: WORK PACKAGE 3 | B77: =IDX_WP_Name_3 -> EXERCISE CONDUCT | J77: F-18
B78: A.1 Employees (or equivalent) | J78: F-18 | M78: Shown
B79: Technical personnel | C79: monthly | D79: 3500 | E79: 5 | F79: =E79*D79 -> 17500 | H79: NO | I79: CBRN Module participating in TTX and FSX | J79: Last | K79: 4#5 | L79: 8#9 | M79: Shown
B80: Select a staff category | C80: monthly | D80: 0 | E80: 0 | F80: =E80*D80 -> 0 | J80: Authorised | K80: 4#5 | L80: 8#9 | M80: Shown
B81: Other | J81: F-18 | M81: Shown
B82: [category 1] | C82: monthly | D82: 0 | E82: 0 | F82: =E82*D82 -> 0 | J82: Last | K82: 4#5 | L82: 8#9 | M82: Shown
B83: [category 2] | C83: monthly | D83: 0 | E83: 0 | F83: =E83*D83 -> 0 | J83: Authorised | K83: 4#5 | L83: 8#9 | M83: Shown
B84: Total employees (or equivalent) | F84: =SUM(F78:F83) -> 17500 | J84: F-18 | M84: Shown
B85: A.2 + A.3 Natural persons under direct contract and seconded persons | J85: F-18 | M85: Shown
B86: Select a staff category | C86: monthly | D86: 0 | E86: 0 | F86: =D86*E86 -> 0 | J86: Last | K86: 4#5 | L86: 8#9 | M86: Shown
B87: Select a staff category | C87: monthly | D87: 0 | E87: 0 | F87: =D87*E87 -> 0 | J87: Authorised | K87: 4#5 | L87: 8#9 | M87: Shown
B88: Other | J88: F-18 | M88: Shown
B89: [category 1] | C89: monthly | D89: 0 | E89: 0 | F89: =D89*E89 -> 0 | J89: Last | K89: 4#5 | L89: 8#9 | M89: Shown
B90: [category 2] | C90: monthly | D90: 0 | E90: 0 | F90: =D90*E90 -> 0 | J90: Authorised | K90: 4#5 | L90: 8#9 | M90: Shown
B91: Total natural persons under direct contract and seconded persons | F91: =SUM(F85:F90) -> 0 | J91: F-18 | M91: Shown
B92: A.4 SME owners and natural person beneficiaries without salary | J92: F-18 | M92: Shown
B93: SME owners/natural person beneficiaries without salary | C93: daily | D93: 0 | E93: 0 | F93: =D93*E93 -> 0 | J93: Last | K93: 4#5 | L93: 8#9 | M93: Shown
B94: Total SME owners and natural person beneficiaries without salary | F94: =SUM(F92:F93) -> 0 | J94: F-18 | M94: Shown
B95: A.5 Volunteers | J95: F-18 | M95: Hidden
B96: Volunteers | C96: daily | D96: 0 | E96: 0 | F96: =D96*E96 -> 0 | J96: Last | K96: 4#5 | L96: 8#9 | M96: Hidden
B97: Total Volunteers | F97: =SUM(F95:F96) -> 0 | J97: F-18 | M97: Hidden
B98: A.6 [Category name] | J98: F-18 | M98: Hidden
B99: Other personnel costs A.6 | C99: Select a type of rate | D99: 0 | E99: 0 | F99: =D99*E99 -> 0 | J99: Last | K99: 4#5 | L99: 8#9 | M99: Hidden
B100: Total other personnel costs A.6 | F100: =SUM(F98:F99) -> 0 | J100: F-18 | M100: Hidden
B101: A.7 [Category name] | J101: F-18 | M101: Hidden
B102: Other personnel costs A.7 | C102: Select a type of rate | D102: 0 | E102: 0 | F102: =D102*E102 -> 0 | J102: Last | K102: 4#5 | L102: 8#9 | M102: Hidden
B103: Total other personnel costs A.7 | F103: =SUM(F101:F102) -> 0 | J103: F-18 | M103: Hidden
B104: Total personnel for this WP | F104: =F91+F84+F94+F97+F100+F103 -> 17500 | J104: F-18
A105: WORK PACKAGE 4 | B105: =IDX_WP_Name_4 -> DISSEMINATION & VISIBILITY | J105: F-18
B106: A.1 Employees (or equivalent) | J106: F-18 | M106: Shown
B107: Select a staff category | C107: monthly | D107: 0 | E107: 0 | F107: =E107*D107 -> 0 | J107: Last | K107: 4#5 | L107: 8#9 | M107: Shown
B108: Select a staff category | C108: monthly | D108: 0 | E108: 0 | F108: =E108*D108 -> 0 | J108: Authorised | K108: 4#5 | L108: 8#9 | M108: Shown
B109: Other | J109: F-18 | M109: Shown
B110: [category 1] | C110: monthly | D110: 0 | E110: 0 | F110: =E110*D110 -> 0 | J110: Last | K110: 4#5 | L110: 8#9 | M110: Shown
B111: [category 2] | C111: monthly | D111: 0 | E111: 0 | F111: =E111*D111 -> 0 | J111: Authorised | K111: 4#5 | L111: 8#9 | M111: Shown
B112: Total employees (or equivalent) | F112: =SUM(F106:F111) -> 0 | J112: F-18 | M112: Shown
B113: A.2 + A.3 Natural persons under direct contract and seconded persons | J113: F-18 | M113: Shown
B114: Select a staff category | C114: monthly | D114: 0 | E114: 0 | F114: =D114*E114 -> 0 | J114: Last | K114: 4#5 | L114: 8#9 | M114: Shown
B115: Select a staff category | C115: monthly | D115: 0 | E115: 0 | F115: =D115*E115 -> 0 | J115: Authorised | K115: 4#5 | L115: 8#9 | M115: Shown
B116: Other | J116: F-18 | M116: Shown
B117: [category 1] | C117: monthly | D117: 0 | E117: 0 | F117: =D117*E117 -> 0 | J117: Last | K117: 4#5 | L117: 8#9 | M117: Shown
B118: [category 2] | C118: monthly | D118: 0 | E118: 0 | F118: =D118*E118 -> 0 | J118: Authorised | K118: 4#5 | L118: 8#9 | M118: Shown
B119: Total natural persons under direct contract and seconded persons | F119: =SUM(F113:F118) -> 0 | J119: F-18 | M119: Shown
B120: A.4 SME owners and natural person beneficiaries without salary | J120: F-18 | M120: Shown
B121: SME owners/natural person beneficiaries without salary | C121: daily | D121: 0 | E121: 0 | F121: =D121*E121 -> 0 | J121: Last | K121: 4#5 | L121: 8#9 | M121: Shown
B122: Total SME owners and natural person beneficiaries without salary | F122: =SUM(F120:F121) -> 0 | J122: F-18 | M122: Shown
B123: A.5 Volunteers | J123: F-18 | M123: Hidden
B124: Volunteers | C124: daily | D124: 0 | E124: 0 | F124: =D124*E124 -> 0 | J124: Last | K124: 4#5 | L124: 8#9 | M124: Hidden
B125: Total Volunteers | F125: =SUM(F123:F124) -> 0 | J125: F-18 | M125: Hidden
B126: A.6 [Category name] | J126: F-18 | M126: Hidden
B127: Other personnel costs A.6 | C127: Select a type of rate | D127: 0 | E127: 0 | F127: =D127*E127 -> 0 | J127: Last | K127: 4#5 | L127: 8#9 | M127: Hidden
B128: Total other personnel costs A.6 | F128: =SUM(F126:F127) -> 0 | J128: F-18 | M128: Hidden
B129: A.7 [Category name] | J129: F-18 | M129: Hidden
B130: Other personnel costs A.7 | C130: Select a type of rate | D130: 0 | E130: 0 | F130: =D130*E130 -> 0 | J130: Last | K130: 4#5 | L130: 8#9 | M130: Hidden
B131: Total other personnel costs A.7 | F131: =SUM(F129:F130) -> 0 | J131: F-18 | M131: Hidden
B132: Total personnel for this WP | F132: =F119+F112+F122+F125+F128+F131 -> 0 | J132: F-18
A133: WORK PACKAGE 5 | B133: =IDX_WP_Name_5 -> EVALUATION | J133: F-18
B134: A.1 Employees (or equivalent) | J134: F-18 | M134: Shown
B135: Senior experts/advisors/researchers | C135: monthly | D135: 0 | E135: 0 | F135: =E135*D135 -> 0 | J135: Last | K135: 4#5 | L135: 8#9 | M135: Shown
B136: Junior experts/advisors/researchers | C136: monthly | D136: 0 | E136: 0 | F136: =E136*D136 -> 0 | J136: Authorised | K136: 4#5 | L136: 8#9 | M136: Shown
B137: Other | J137: F-18 | M137: Shown
B138: [category 1] | C138: monthly | D138: 0 | E138: 0 | F138: =E138*D138 -> 0 | J138: Last | K138: 4#5 | L138: 8#9 | M138: Shown
B139: [category 2] | C139: monthly | D139: 0 | E139: 0 | F139: =E139*D139 -> 0 | J139: Authorised | K139: 4#5 | L139: 8#9 | M139: Shown
B140: Total employees (or equivalent) | F140: =SUM(F134:F139) -> 0 | J140: F-18 | M140: Shown
B141: A.2 + A.3 Natural persons under direct contract and seconded persons | J141: F-18 | M141: Shown
B142: Select a staff category | C142: monthly | D142: 0 | E142: 0 | F142: =D142*E142 -> 0 | J142: Last | K142: 4#5 | L142: 8#9 | M142: Shown
B143: Select a staff category | C143: monthly | D143: 0 | E143: 0 | F143: =D143*E143 -> 0 | J143: Authorised | K143: 4#5 | L143: 8#9 | M143: Shown
B144: Other | J144: F-18 | M144: Shown
B145: [category 1] | C145: monthly | D145: 0 | E145: 0 | F145: =D145*E145 -> 0 | J145: Last | K145: 4#5 | L145: 8#9 | M145: Shown
B146: [category 2] | C146: monthly | D146: 0 | E146: 0 | F146: =D146*E146 -> 0 | J146: Authorised | K146: 4#5 | L146: 8#9 | M146: Shown
B147: Total natural persons under direct contract and seconded persons | F147: =SUM(F141:F146) -> 0 | J147: F-18 | M147: Shown
B148: A.4 SME owners and natural person beneficiaries without salary | J148: F-18 | M148: Shown
B149: SME owners/natural person beneficiaries without salary | C149: daily | D149: 0 | E149: 0 | F149: =D149*E149 -> 0 | J149: Last | K149: 4#5 | L149: 8#9 | M149: Shown
B150: Total SME owners and natural person beneficiaries without salary | F150: =SUM(F148:F149) -> 0 | J150: F-18 | M150: Shown
B151: A.5 Volunteers | J151: F-18 | M151: Hidden
B152: Volunteers | C152: daily | D152: 0 | E152: 0 | F152: =D152*E152 -> 0 | J152: Last | K152: 4#5 | L152: 8#9 | M152: Hidden
B153: Total Volunteers | F153: =SUM(F151:F152) -> 0 | J153: F-18 | M153: Hidden
B154: A.6 [Category name] | J154: F-18 | M154: Hidden
B155: Other personnel costs A.6 | C155: Select a type of rate | D155: 0 | E155: 0 | F155: =D155*E155 -> 0 | J155: Last | K155: 4#5 | L155: 8#9 | M155: Hidden
B156: Total other personnel costs A.6 | F156: =SUM(F154:F155) -> 0 | J156: F-18 | M156: Hidden
B157: A.7 [Category name] | J157: F-18 | M157: Hidden
B158: Other personnel costs A.7 | C158: Select a type of rate | D158: 0 | E158: 0 | F158: =D158*E158 -> 0 | J158: Last | K158: 4#5 | L158: 8#9 | M158: Hidden
B159: Total other personnel costs A.7 | F159: =SUM(F157:F158) -> 0 | J159: F-18 | M159: Hidden
B160: Total personnel for this WP | F160: =F147+F140+F150+F153+F156+F159 -> 0 | J160: F-18
A161: WORK PACKAGE 6 | B161: =IDX_WP_Name_6 -> WAY FORWARD WORKSHOPS AND SEMINARS | J161: F-18
B162: A.1 Employees (or equivalent) | J162: F-18 | M162: Shown
B163: Select a staff category | C163: monthly | D163: 0 | E163: 0 | F163: =E163*D163 -> 0 | J163: Last | K163: 4#5 | L163: 8#9 | M163: Shown
B164: Select a staff category | C164: monthly | D164: 0 | E164: 0 | F164: =E164*D164 -> 0 | J164: Authorised | K164: 4#5 | L164: 8#9 | M164: Shown
B165: Other | J165: F-18 | M165: Shown
B166: [category 1] | C166: monthly | D166: 0 | E166: 0 | F166: =E166*D166 -> 0 | J166: Last | K166: 4#5 | L166: 8#9 | M166: Shown
B167: [category 2] | C167: monthly | D167: 0 | E167: 0 | F167: =E167*D167 -> 0 | J167: Authorised | K167: 4#5 | L167: 8#9 | M167: Shown
B168: Total employees (or equivalent) | F168: =SUM(F162:F167) -> 0 | J168: F-18 | M168: Shown
B169: A.2 + A.3 Natural persons under direct contract and seconded persons | J169: F-18 | M169: Shown
B170: Select a staff category | C170: monthly | D170: 0 | E170: 0 | F170: =D170*E170 -> 0 | J170: Last | K170: 4#5 | L170: 8#9 | M170: Shown
B171: Select a staff category | C171: monthly | D171: 0 | E171: 0 | F171: =D171*E171 -> 0 | J171: Authorised | K171: 4#5 | L171: 8#9 | M171: Shown
B172: Other | J172: F-18 | M172: Shown
B173: [category 1] | C173: monthly | D173: 0 | E173: 0 | F173: =D173*E173 -> 0 | J173: Last | K173: 4#5 | L173: 8#9 | M173: Shown
B174: [category 2] | C174: monthly | D174: 0 | E174: 0 | F174: =D174*E174 -> 0 | J174: Authorised | K174: 4#5 | L174: 8#9 | M174: Shown
B175: Total natural persons under direct contract and seconded persons | F175: =SUM(F169:F174) -> 0 | J175: F-18 | M175: Shown
B176: A.4 SME owners and natural person beneficiaries without salary | J176: F-18 | M176: Shown
B177: SME owners/natural person beneficiaries without salary | C177: daily | D177: 0 | E177: 0 | F177: =D177*E177 -> 0 | J177: Last | K177: 4#5 | L177: 8#9 | M177: Shown
B178: Total SME owners and natural person beneficiaries without salary | F178: =SUM(F176:F177) -> 0 | J178: F-18 | M178: Shown
B179: A.5 Volunteers | J179: F-18 | M179: Hidden
B180: Volunteers | C180: daily | D180: 0 | E180: 0 | F180: =D180*E180 -> 0 | J180: Last | K180: 4#5 | L180: 8#9 | M180: Hidden
B181: Total Volunteers | F181: =SUM(F179:F180) -> 0 | J181: F-18 | M181: Hidden
B182: A.6 [Category name] | J182: F-18 | M182: Hidden
B183: Other personnel costs A.6 | C183: Select a type of rate | D183: 0 | E183: 0 | F183: =D183*E183 -> 0 | J183: Last | K183: 4#5 | L183: 8#9 | M183: Hidden
B184: Total other personnel costs A.6 | F184: =SUM(F182:F183) -> 0 | J184: F-18 | M184: Hidden
B185: A.7 [Category name] | J185: F-18 | M185: Hidden
B186: Other personnel costs A.7 | C186: Select a type of rate | D186: 0 | E186: 0 | F186: =D186*E186 -> 0 | J186: Last | K186: 4#5 | L186: 8#9 | M186: Hidden
B187: Total other personnel costs A.7 | F187: =SUM(F185:F186) -> 0 | J187: F-18 | M187: Hidden
B188: Total personnel for this WP | F188: =F175+F168+F178+F181+F184+F187 -> 0 | J188: F-18
A190: Total personnel (all WPs) | F190: =WP_A1_Total+WP_A2_Total+WP_A3_Total+WP_A4_Total+WP_A5_Total+WP_A6_Total -> 34900 | J190: F-24
A191: B. Subcontracting costs | J191: F-24
C192: Costs (actual costs) | H192: Also used for other work packages? YES/NO and which WP | I192: Description of subcontracted project tasks/activities
J193: F-24
A194: WORK PACKAGE 1 | B194: =IDX_WP_Name_1 -> PROJECT MANAGEMENT | J194: F-18
B195: 1 [Subcontract short name] | C195: 0 | J195: Last | K195: 3 | L195: 2#8#9
B196: 2 [Subcontract short name] | C196: 0 | J196: Authorised | K196: 3 | L196: 2#8#9
B197: Total subcontracting for this WP | C197: =SUM(C194:C196) -> 0 | J197: F-18
A198: WORK PACKAGE 2 | B198: =IDX_WP_Name_2 -> PLANNING | J198: F-18
B199: 1 [Subcontract short name] | C199: 0 | J199: Last | K199: 3 | L199: 2#8#9
B200: 2 [Subcontract short name] | C200: 0 | J200: Authorised | K200: 3 | L200: 2#8#9
B201: Total subcontracting for this WP | C201: =SUM(C198:C200) -> 0 | J201: F-18
A202: WORK PACKAGE 3 | B202: =IDX_WP_Name_3 -> EXERCISE CONDUCT | J202: F-18
B203: 1 [Subcontract short name] | C203: 0 | J203: Last | K203: 3 | L203: 2#8#9
B204: 2 [Subcontract short name] | C204: 0 | J204: Authorised | K204: 3 | L204: 2#8#9
B205: Total subcontracting for this WP | C205: =SUM(C202:C204) -> 0 | J205: F-18
... 425 more rows

Sheet 4. Consolid table (participant)
A1: EU GRANTS DETAILED BUDGET TABLE (ACTION GRANTS)
A3: Project number: | B3: =IF(ISBLANK('2. Start'!C4)," ",'2. Start'!C4) -> 210747735
A4: Project acronym: | B4: =IF(ISBLANK('2. Start'!C5)," ",'2. Start'!C5) -> FORMATEX23
A5: Participant short name: | B5: =IF(ISBLANK('2. Start'!C6)," ",'2. Start'!C6) -> 
A6: Participant PIC: | B6: =IF(ISBLANK('2. Start'!C7)," ",'2. Start'!C7) -> 
A8: CONSOLIDATED COSTS PER WORK PACKAGE (PER PARTICIPANT)
A9: COSTS PER WORK PACKAGE
B10: A.1 Employees A.2 + A.3 Natural persons under direct contract and seconded persons | C10: A.4 SME owners | D10: A.5 Volunteers | E10: ='EC Data'!A28 -> A.6 [Category name] | F10: ='EC Data'!A29 -> A.7 [Category name] | G10: B. Subcontracting costs | H10: C. Purchase costs | N10: D. Other cost categories | T10: E. Indirect costs | U10: Total
H11: C.1 Travel and subsistence | I11: C.1 Travel | J11: C.1 Accomodation | K11: C.1 Subsistence | L11: C.2 Equipment | M11: C.3 Other goods, work and services | N11: D.1 Financial support to third parties | O11: ='EC Data'!A15 -> D.2 [Category name] | P11: ='EC Data'!A16 -> D.3 [Category name] | Q11: ='EC Data'!A17 -> D.4 [Category name] | R11: ='EC Data'!A18 -> D.5 [Category name] | S11: ='EC Data'!A19 -> D.6 [Category name]
B12: a1 - a2 | C12: a3 | D12: a4 | E12: a5 | F12: a6 | G12: b | H12: c1 | I12: c1a | J12: c1b | K12: c1c | L12: c2 | M12: c3 | N12: d1 | O12: d2 | P12: d3 | Q12: d4 | R12: d5 | S12: d6 | T12: e = flat-rate * (a1 + a2 + a3 + a5 + b [+ c1] + [c1a + c1b + c1c] + c2 + c3 + d1 + d2 + d3 + d4 + d5 + d6)
N13: (N/A)
W14: Hidden
A15: ="WP1 " & IDX_WP_Name_1 -> WP1 PROJECT MANAGEMENT | B15: =WP_A1_1_subTotal+WP_A1_2_subTotal -> 17400 | C15: =WP_A1_3_subTotal -> 0 | D15: =WP_A1_4_subTotal -> 0 | E15: =WP_A1_5_subTotal -> 0 | F15: =WP_A1_6_subTotal -> 0 | G15: =WP_C1_Total -> 0 | H15: =WP_B1_1_subTotal+WP_B1_2_subTotal+WP_B1_3_subTotal -> 1900 | I15: =WP_B1_1_subTotal -> 1100 | J15: =WP_B1_2_subTotal -> 500 | K15: =WP_B1_3_subTotal -> 300 | L15: =WP_E11_Total -> 0 | M15: =WP_E21_Total -> 0 | N15: N/A | O15: N/A | P15: N/A | Q15: N/A | R15: N/A | S15: N/A | U15: =WP_A1_1_subTotal+WP_A1_2_subTotal+WP_A1_3_subTotal+WP_A1_4_subTotal+WP_A1_5_subTotal+WP_A1_6_subTotal+WP_C1_Total+WP_B1_1_subTotal+WP_B1_2_subTotal+WP_B1_3_subTotal+WP_E11_Total+WP_E21_Total -> 19300 | W15: Shown
A16: ="WP2 " & IDX_WP_Name_2 -> WP2 PLANNING | B16: =WP_A2_1_subTotal+WP_A2_2_subTotal -> 0 | C16: =WP_A2_3_subTotal -> 0 | D16: =WP_A2_4_subTotal -> 0 | E16: =WP_A2_5_subTotal -> 0 | F16: =WP_A2_6_subTotal -> 0 | G16: =WP_C2_Total -> 0 | H16: =WP_B2_1_subTotal+WP_B2_2_subTotal+WP_B2_3_subTotal -> 5100 | I16: =WP_B2_1_subTotal -> 2700 | J16: =WP_B2_2_subTotal -> 1500 | K16: =WP_B2_3_subTotal -> 900 | L16: =WP_E12_Total -> 0 | M16: =WP_E22_Total -> 0 | N16: N/A | O16: N/A | P16: N/A | Q16: N/A | R16: N/A | S16: N/A | U16: =WP_A2_1_subTotal+WP_A2_2_subTotal+WP_A2_3_subTotal+WP_A2_4_subTotal+WP_A2_5_subTotal+WP_A2_6_subTotal+WP_C2_Total+WP_B2_1_subTotal+WP_B2_2_subTotal+WP_B2_3_subTotal+WP_E12_Total+WP_E22_Total -> 5100 | W16: Shown
A17: ="WP3 " & IDX_WP_Name_3 -> WP3 EXERCISE CONDUCT | B17: =WP_A3_1_subTotal+WP_A3_2_subTotal -> 17500 | C17: =WP_A3_3_subTotal -> 0 | D17: =WP_A3_4_subTotal -> 0 | E17: =WP_A3_5_subTotal -> 0 | F17: =WP_A3_6_subTotal -> 0 | G17: =WP_C3_Total -> 0 | H17: =WP_B3_1_subTotal+WP_B3_2_subTotal+WP_B3_3_subTotal -> 25000 | I17: =WP_B3_1_subTotal -> 25000 | J17: =WP_B3_2_subTotal -> 0 | K17: =WP_B3_3_subTotal -> 0 | L17: =WP_E13_Total -> 0 | M17: =WP_E23_Total -> 0 | N17: N/A | O17: N/A | P17: N/A | Q17: N/A | R17: N/A | S17: N/A | U17: =WP_A3_1_subTotal+WP_A3_2_subTotal+WP_A3_3_subTotal+WP_A3_4_subTotal+WP_A3_5_subTotal+WP_A3_6_subTotal+WP_C3_Total+WP_B3_1_subTotal+WP_B3_2_subTotal+WP_B3_3_subTotal+WP_E13_Total+WP_E23_Total -> 42500 | W17: Shown
A18: ="WP4 " & IDX_WP_Name_4 -> WP4 DISSEMINATION & VISIBILITY | B18: =WP_A4_1_subTotal+WP_A4_2_subTotal -> 0 | C18: =WP_A4_3_subTotal -> 0 | D18: =WP_A4_4_subTotal -> 0 | E18: =WP_A4_5_subTotal -> 0 | F18: =WP_A4_6_subTotal -> 0 | G18: =WP_C4_Total -> 0 | H18: =WP_B4_1_subTotal+WP_B4_2_subTotal+WP_B4_3_subTotal -> 0 | I18: =WP_B4_1_subTotal -> 0 | J18: =WP_B4_2_subTotal -> 0 | K18: =WP_B4_3_subTotal -> 0 | L18: =WP_E14_Total -> 0 | M18: =WP_E24_Total -> 0 | N18: N/A | O18: N/A | P18: N/A | Q18: N/A | R18: N/A | S18: N/A | U18: =WP_A4_1_subTotal+WP_A4_2_subTotal+WP_A4_3_subTotal+WP_A4_4_subTotal+WP_A4_5_subTotal+WP_A4_6_subTotal+WP_C4_Total+WP_B4_1_subTotal+WP_B4_2_subTotal+WP_B4_3_subTotal+WP_E14_Total+WP_E24_Total -> 0 | W18: Shown
A19: ="WP5 " & IDX_WP_Name_5 -> WP5 EVALUATION | B19: =WP_A5_1_subTotal+WP_A5_2_subTotal -> 0 | C19: =WP_A5_3_subTotal -> 0 | D19: =WP_A5_4_subTotal -> 0 | E19: =WP_A5_5_subTotal -> 0 | F19: =WP_A5_6_subTotal -> 0 | G19: =WP_C5_Total -> 0 | H19: =WP_B5_1_subTotal+WP_B5_2_subTotal+WP_B5_3_subTotal -> 0 | I19: =WP_B5_1_subTotal -> 0 | J19: =WP_B5_2_subTotal -> 0 | K19: =WP_B5_3_subTotal -> 0 | L19: =WP_E15_Total -> 1125 | M19: =WP_E25_Total -> 0 | N19: N/A | O19: N/A | P19: N/A | Q19: N/A | R19: N/A | S19: N/A | U19: =WP_A5_1_subTotal+WP_A5_2_subTotal+WP_A5_3_subTotal+WP_A5_4_subTotal+WP_A5_5_subTotal+WP_A5_6_subTotal+WP_C5_Total+WP_B5_1_subTotal+WP_B5_2_subTotal+WP_B5_3_subTotal+WP_E15_Total+WP_E25_Total -> 1125 | W19: Shown
A20: ="WP6 " & IDX_WP_Name_6 -> WP6 WAY FORWARD WORKSHOPS AND SEMINARS | B20: =WP_A6_1_subTotal+WP_A6_2_subTotal -> 0 | C20: =WP_A6_3_subTotal -> 0 | D20: =WP_A6_4_subTotal -> 0 | E20: =WP_A6_5_subTotal -> 0 | F20: =WP_A6_6_subTotal -> 0 | G20: =WP_C6_Total -> 0 | H20: =WP_B6_1_subTotal+WP_B6_2_subTotal+WP_B6_3_subTotal -> 4800 | I20: =WP_B6_1_subTotal -> 3600 | J20: =WP_B6_2_subTotal -> 0 | K20: =WP_B6_3_subTotal -> 1200 | L20: =WP_E16_Total -> 0 | M20: =WP_E26_Total -> 0 | N20: N/A | O20: N/A | P20: N/A | Q20: N/A | R20: N/A | S20: N/A | U20: =WP_A6_1_subTotal+WP_A6_2_subTotal+WP_A6_3_subTotal+WP_A6_4_subTotal+WP_A6_5_subTotal+WP_A6_6_subTotal+WP_C6_Total+WP_B6_1_subTotal+WP_B6_2_subTotal+WP_B6_3_subTotal+WP_E16_Total+WP_E26_Total -> 4800 | W20: Shown
W21: Hidden
A22: TOTAL COSTS PARTICIPANT | B22: =SUM(B14:B21) -> 34900 | C22: 0 | D22: 0 | E22: 0 | F22: 0 | G22: 0 | H22: 36800 | I22: 32400 | J22: 2000 | K22: 2400 | L22: 1125 | M22: 0 | N22: 0 | O22: 0 | P22: 0 | Q22: 0 | R22: 0 | S22: 0 | T22: =WP_F_Total -> 5097.75 | U22: =(B22+C22+D22+E22+F22+G22+I22+J22+K22+L22+M22+N22+O22+P22+Q22+R22+T22) -> 77922.75 | W22: F-24
A25: Total eligible costs (for controls) | B25: =B22+C22+E22+F22+G22+L22+M22+N22+O22+P22+Q22+R22+I22+J22+K22+S22 -> 72825

Sheet 5. Consolid table (project)
A1: EU GRANTS DETAILED BUDGET TABLE (ACTION GRANTS)
A3: Project number: | B3: =IF(ISBLANK('2. Start'!C4)," ",'2. Start'!C4) -> 210747735
A4: Project acronym: | B4: =IF(ISBLANK('2. Start'!C5)," ",'2. Start'!C5) -> FORMATEX23
A6: ATTENTION! Delete columns that do not apply for your grant.
A8: CONSOLIDATED COSTS PER WORK PACKAGE (PROJECT)
A9: PROJECT COSTS PER WORK PACKAGE
B10: A.1 Employees A.2 + A.3 Natural persons under direct contract and seconded persons | C10: A.4 SME owners | D10: A.5 Volunteers | E10: ='EC Data'!A28 -> A.6 [Category name] | F10: ='EC Data'!A29 -> A.7 [Category name] | G10: B. Subcontracting costs | H10: C. Purchase costs | N10: D. Other cost categories | T10: E. Indirect costs | U10: Total
H11: C.1 Travel and subsistence | I11: C.1 Travel | J11: C.1 Accomodation | K11: C.1 Subsistence | L11: C.2 Equipment | M11: C.3 Other goods, works and services | N11: D.1 Financial support to third parties | O11: ='EC Data'!A15 -> D.2 [Category name] | P11: ='EC Data'!A16 -> D.3 [Category name] | Q11: ='EC Data'!A17 -> D.4 [Category name] | R11: ='EC Data'!A18 -> D.5 [Category name] | S11: ='EC Data'!A19 -> D.6 [Category name]
B12: a1 - a2 | C12: a3 | D12: a4 | E12: a5 | F12: a6 | G12: b | H12: c1 | I12: c1a | J12: c1b | K12: c1c | L12: c2 | M12: c3 | N12: d1 | O12: d2 | P12: d3 | Q12: d4 | R12: d5 | S12: d6 | T12: e = flat-rate * (a1 + a2 + a3 + a5 + b [+ c1] + [c1a + c1b + c1c] + c2 + c3 + d1 + d2 + d3 + d4 + d5 + d6)
A13: PARTICIPANT [name]
A14: TOTAL COSTS PARTICIPANT (Proposal Step) | U14: =SUM(B14:T14) -> 0
A15: TOTAL COSTS PARTICIPANT (Grant Preparation Step) | U15: =SUM(B15:T15) -> 0
A16: PARTICIPANT [name]
A17: TOTAL COSTS PARTICIPANT (Proposal Step) | U17: =SUM(B17:T17) -> 0
A18: TOTAL COSTS PARTICIPANT (Grant Preparation Step) | U18: =SUM(B18:T18) -> 0
A19: PARTICIPANT [name]
A20: TOTAL COSTS PARTICIPANT (Proposal Step) | U20: =SUM(B20:T20) -> 0
A21: TOTAL COSTS PARTICIPANT (Grant Preparation Step) | U21: =SUM(B21:T21) -> 0
